bitfinex/quotes_ETHUSD_20251024
["timestamp","ask_amount","ask_price","bid_price","bid_amount"]
[1761265210514,2.78887352,3863.5,3863.4,0.002]
[1761265211049,5.37720016,3863.5,3863.4,0.002]
[1761265211220,7.21035779,3863.5,3863.4,0.002]
[1761265211417,7.90480723,3863.5,3863.4,0.002]
[1761265211610,10.51635779,3863.5,3863.4,0.002]
[1761265212439,11.21080723,3863.5,3863.4,0.002]
[1761265212649,10.51635779,3863.5,3863.4,0.002]
[1761265215565,11.44718462,3863.5,3863.4,0.002]
[1761265215768,10.51635779,3863.5,3863.4,0.002]
[1761265216063,5.37720016,3863.5,3863.4,0.002]
[1761265216635,2.78887352,3863.5,3863.4,0.002]
[1761265218464,5.37720016,3863.5,3863.4,0.002]
[1761265218768,4.14379465,3863.1,3863.0,0.002]
[1761265218964,8.93973306,3863.1,3863.0,0.002]
[1761265219132,9.39333306,3863.1,3863.0,0.002]
[1761265223980,5.41907352,3863.1,3863.0,0.002]
[1761265224180,5.87267352,3863.1,3863.0,0.002]
[1761265224586,8.46126817,3863.1,3863.0,0.002]
[1761265226107,8.59086817,3863.1,3863.0,0.002]
[1761265226490,8.58901897,3863.1,3863.0,0.002]
[1761265227295,9.776282,3863.1,3863.0,0.002]
[1761265231205,3.86202432,3863.1,3863.0,0.002]
[1761265231392,3.306,3863.1,3863.0,0.1316]
[1761265232707,0.001,3863.4,3863.3,2.58846064]
[1761265232879,0.001,3863.4,3863.3,2.80404524]
[1761265233285,0.001,3863.4,3863.3,2.77816064]
[1761265233492,0.001,3863.4,3863.3,2.58846064]
[1761265233696,0.001,3863.4,3863.3,6.62592524]
[1761265234010,0.001,3863.4,3863.3,7.52169129]
[1761265235271,0.001,3863.4,3863.3,9.07689129]
[1761265237510,0.001,3863.4,3863.3,5.76189129]
[1761265237691,0.001,3863.4,3863.3,9.07689129]
[1761265240515,1e-08,3864.0,3863.9,3.09493869]
[1761265240845,0.6950304,3866.3,3863.9,3.09493869]
[1761265240846,1e-08,3864.8,3864.7,4.64960296]
[1761265241131,1e-08,3864.8,3864.7,8.72019917]
[1761265241290,1e-08,3864.8,3864.7,5.56302395]
[1761265241796,1e-08,3864.8,3864.7,8.88602395]
[1761265242214,1e-08,3864.8,3864.7,5.37332395]
[1761265242386,1e-08,3864.8,3864.7,5.56302395]
[1761265242591,1e-08,3864.8,3864.7,9.01462395]
[1761265242793,1e-08,3864.8,3864.7,4.99604395]
[1761265243117,1e-08,3864.8,3863.8,3.329]
[1761265243315,1e-08,3864.8,3864.5,2.58765041]
[1761265243502,1e-08,3864.8,3864.4,2.58770705]
[1761265243693,1e-08,3864.8,3864.5,2.58764496]
[1761265244019,1e-08,3864.8,3864.6,2.58756283]
[1761265244318,1e-08,3864.8,3864.5,2.58764472]
[1761265244524,1e-08,3864.8,3864.6,2.58756465]
[1761265244831,1e-08,3864.8,3864.2,5.92179085]
[1761265245002,1e-08,3864.8,3864.4,2.58766421]
[1761265245209,1e-08,3864.8,3863.7,0.1897]
[1761265245210,0.44670001,3864.8,3863.5,1.5552]
[1761265245407,0.44670001,3864.8,3863.6,3.334]
[1761265245628,0.44670001,3864.8,3864.0,2.58798156]
[1761265246038,0.44670001,3864.8,3864.1,2.58791758]
[1761265246444,0.44670001,3864.8,3863.7,0.35237]
[1761265246644,0.44670001,3864.8,3863.7,2.58814192]
[1761265246645,2.58764321,3864.6,3863.7,2.58814192]
[1761265246955,2.58778492,3864.4,3863.5,3.333]
[1761265247124,2.58778492,3864.4,3863.5,4.02494337]
[1761265247320,2.58780262,3864.3,3863.5,6.61324913]
[1761265247936,1e-08,3864.8,3863.0,2.59064178]
[1761265247937,0.4467,3864.2,3863.0,2.59064178]
[1761265248228,0.4467,3864.2,3863.2,3.333]
[1761265248442,0.4467,3864.2,3863.0,0.002]
[1761265248443,0.2203,3863.3,3863.0,0.002]
[1761265249051,3.03490587,3863.7,3863.0,0.002]
[1761265249240,0.2203,3863.5,3863.0,0.002]
[1761265249436,0.2203,3863.5,3863.0,2.59064987]
[1761265249853,0.4467,3863.4,3863.0,2.59064987]
[1761265250639,0.4467,3863.4,3863.0,2.5906546]
[1761265251156,0.2203,3863.5,3863.1,2.58856869]
[1761265251466,0.001,3863.5,3863.2,0.02588527]
[1761265251624,0.001,3863.5,3863.4,2.58839364]
[1761265251823,0.001,3863.5,3863.0,0.002]
[1761265251824,0.001,3863.5,3863.3,2.58841425]
[1761265252046,0.001,3863.5,3863.0,0.002]
[1761265252047,0.4467,3863.4,3863.0,0.002]
[1761265252558,0.001,3863.5,3863.0,0.002]
[1761265252760,0.001,3863.5,3863.0,2.59065858]
[1761265252961,0.001,3863.5,3863.0,0.002]
[1761265253259,0.001,3863.5,3863.4,0.1296]
[1761265255056,0.001,3863.5,3863.4,2.71799364]
[1761265257328,0.001,3863.5,3863.4,3.24864501]
[1761265257564,0.001,3863.5,3863.4,3.43834501]
[1761265258570,0.001,3863.5,3863.4,3.24864501]
[1761265258774,0.001,3863.5,3863.4,6.57864501]
[1761265260023,0.001,3863.5,3863.4,6.76834501]
[1761265260537,0.001,3863.5,3863.4,3.24864501]
[1761265260758,0.001,3863.5,3863.4,6.04599364]
[1761265261262,0.001,3863.5,3863.4,2.71799364]
[1761265265162,0.4432,3863.5,3863.4,0.1296]
[1761265265358,0.001,3863.5,3863.4,2.71799364]
[1761265265568,0.001,3863.5,3863.4,2.58839364]
[1761265265785,0.001,3863.5,3863.4,2.71799364]
[1761265266852,0.4432,3863.5,3863.4,0.1296]
[1761265267275,0.4432,3863.5,3863.4,2.71799364]
[1761265267451,0.001,3863.5,3863.4,2.71799364]
[1761265267949,0.001,3863.5,3863.4,0.1296]
[1761265267950,0.4432,3863.5,3863.4,0.1296]
[1761265270302,0.4432,3863.5,3863.0,0.002]
[1761265270502,0.4432,3863.5,3863.0,2.72025362]
[1761265270856,0.4432,3863.5,3863.0,0.1316]
[1761265271258,2.58859465,3863.1,3863.0,0.002]
[1761265271481,2.58859465,3863.1,3862.2,0.002]
[1761265271482,2.58913082,3862.3,3862.2,0.002]
[1761265271688,6.46913973,3862.3,3862.2,0.002]
[1761265271868,8.83693206,3862.3,3862.2,0.002]
[1761265274286,10.26253206,3862.3,3862.2,0.002]
[1761265274990,10.95826354,3862.3,3862.2,0.002]
[1761265275764,10.26253206,3862.3,3862.2,0.002]
[1761265277391,10.26153206,3862.3,3862.2,0.002]
[1761265277595,6.93953206,3862.3,3862.2,0.002]
[1761265277789,8.46553973,3862.3,3862.2,0.002]
[1761265284421,8.59513973,3862.3,3862.2,0.002]
[1761265286530,8.15293973,3862.3,3862.2,0.002]
[1761265286824,8.03813082,3862.3,3862.2,0.002]
[1761265289327,8.59280978,3862.3,3862.2,0.002]
[1761265289497,7.60121243,3862.3,3862.2,0.002]
[1761265290204,8.15593411,3862.3,3862.2,0.002]
[1761265290397,7.71373411,3862.3,3862.2,0.002]
[1761265290741,8.15173411,3862.3,3862.2,0.002]
[1761265290943,7.59701243,3862.3,3862.2,0.002]
[1761265291143,8.15177926,3862.3,3862.2,0.002]
[1761265292343,7.71377926,3862.3,3862.2,0.002]
[1761265292642,6.59549765,3862.3,3862.2,0.002]
[1761265292948,3.322,3862.3,3862.2,0.002]
[1761265293113,3.87728464,3862.3,3862.2,0.002]
[1761265293454,3.322,3862.3,3862.2,0.002]
[1761265294347,3.322,3862.3,3862.2,2.91449786]
[1761265294657,0.001,3862.6,3862.2,0.87588909]
[1761265294816,0.001,3862.6,3862.5,2.58899676]
[1761265295016,0.001,3862.6,3862.5,2.71859676]
[1761265295239,0.001,3862.6,3862.5,2.91229676]
[1761265296311,0.001,3862.6,3862.5,0.3233]
[1761265296547,0.001,3862.6,3862.5,0.1296]
[1761265296746,0.001,3862.6,3862.5,2.71859676]
[1761265296959,0.001,3862.6,3862.5,3.24956844]
[1761265297244,0.001,3862.6,3862.5,0.66057168]
[1761265297418,0.001,3862.6,3862.5,0.1296]
[1761265298848,0.001,3862.6,3862.5,2.71859676]
[1761265299861,0.001,3862.6,3862.5,0.1296]
[1761265300566,3.02792973,3862.6,3862.5,0.1296]
[1761265300732,4.3047189,3862.6,3862.3,0.1296]
[1761265300932,3.748,3862.6,3862.3,0.1296]
[1761265301133,0.55743312,3862.5,3862.3,0.1296]
[1761265302246,5.8989358,3862.6,3862.3,0.1296]
[1761265302446,0.438,3862.5,3862.3,0.1296]
[1761265302649,0.438,3862.5,3862.2,0.002]
[1761265302829,0.438,3862.5,3862.2,0.1316]
[1761265303133,3.31,3862.6,3862.2,0.1316]
[1761265304335,3.748,3862.6,3862.2,0.1316]
[1761265304751,2.58904044,3862.5,3862.2,0.1316]
[1761265304956,0.55732527,3862.4,3862.2,0.002]
[1761265305151,2.58913082,3862.3,3862.2,0.002]
[1761265305357,3.02713082,3862.3,3862.2,0.002]
[1761265306176,6.33413082,3862.3,3862.2,0.002]
[1761265307282,6.89152155,3862.3,3862.2,0.002]
[1761265307465,8.79350754,3862.3,3862.2,0.002]
[1761265311181,9.48923902,3862.3,3862.2,0.002]
[1761265311683,8.79350754,3862.3,3862.2,0.002]
[1761265311886,3.86439073,3862.3,3862.2,0.002]
[1761265312088,3.86239073,3862.3,3862.2,0.002]
[1761265312266,6.45152155,3862.3,3862.2,0.002]
[1761265312466,3.86239073,3862.3,3862.2,0.002]
[1761265312666,6.45152155,3862.3,3862.2,0.002]
[1761265314292,7.87620835,3862.3,3862.2,0.002]
[1761265314697,10.96820971,3862.3,3862.2,0.002]
[1761265316106,11.66394119,3862.3,3862.2,0.002]
[1761265317790,10.96820971,3862.3,3862.2,0.002]
[1761265318008,11.66394119,3862.3,3862.2,0.002]
[1761265318711,11.66609385,3862.3,3862.2,0.002]
[1761265321442,8.63896303,3862.3,3862.2,0.002]
[1761265321618,3.85889994,3862.3,3862.2,0.002]
[1761265321815,4.28779994,3862.3,3862.2,0.002]
[1761265322023,6.87693076,3862.3,3862.2,0.002]
[1761265322213,3.85889994,3862.3,3862.2,0.002]
[1761265322536,3.8589523,3862.3,3862.2,0.002]
[1761265322738,6.95095366,3862.3,3862.2,0.002]
[1761265323035,9.54008448,3862.3,3862.2,0.002]
[1761265323240,6.95095366,3862.3,3862.2,0.002]
[1761265324556,9.54008448,3862.3,3862.2,0.002]
[1761265324741,9.96898448,3862.3,3862.2,0.002]
[1761265325722,6.66798448,3862.3,3862.2,0.002]
[1761265325947,9.96898448,3862.3,3862.2,0.002]
[1761265326144,7.37985366,3862.3,3862.2,0.002]
[1761265326335,6.95095366,3862.3,3862.2,0.002]
[1761265327347,0.5579523,3862.3,3862.2,0.002]
[1761265327539,3.8579523,3862.3,3862.2,0.002]
[1761265330452,3.8579523,3862.3,3862.2,2.59119786]
[1761265330826,3.8579523,3862.3,3862.2,3.46507984]
[1761265330827,0.5579523,3862.3,3862.2,3.46507984]
[1761265331177,0.001,3862.6,3862.5,2.58899676]
[1761265331458,0.001,3862.6,3862.5,2.61488672]
[1761265331656,0.001,3862.6,3862.5,2.80858672]
[1761265331859,0.001,3862.6,3862.5,0.72462325]
[1761265332089,0.001,3862.6,3862.2,0.002]
[1761265332090,2.58913082,3862.3,3862.2,0.002]
[1761265332228,6.44745737,3862.3,3862.2,0.002]
[1761265332433,8.26375481,3862.3,3862.2,0.002]
[1761265332885,5.67462399,3862.3,3862.2,0.002]
[1761265333031,8.26375481,3862.3,3862.2,0.002]
[1761265334383,9.39005481,3862.3,3862.2,0.002]
[1761265334545,9.81895481,3862.3,3862.2,0.002]
[1761265336576,8.43155737,3862.3,3862.2,0.002]
[1761265339496,9.82705515,3862.3,3862.2,0.002]
[1761265339779,8.53529275,3862.3,3862.2,0.002]
[1761265339979,9.93209997,3862.3,3862.2,0.002]
[1761265341376,8.53529275,3862.3,3862.2,0.002]
[1761265341570,11.13722338,3862.3,3862.2,0.002]
[1761265341777,12.5340306,3862.3,3862.2,0.002]
[1761265341948,12.6636306,3862.3,3862.2,0.002]
[1761265345762,11.26682338,3862.3,3862.2,0.002]
[1761265345967,12.6636306,3862.3,3862.2,0.002]
[1761265346167,11.26682338,3862.3,3862.2,0.002]
[1761265346809,12.6636306,3862.3,3862.2,0.002]
[1761265347017,11.26682338,3862.3,3862.2,0.002]
[1761265347668,12.6636306,3862.3,3862.2,0.002]
[1761265348469,11.26682338,3862.3,3862.2,0.002]
[1761265350772,12.6636306,3862.3,3862.2,0.002]
[1761265351183,12.6636306,3862.3,3862.1,1e-08]
[1761265351184,0.50688,3862.2,3862.1,1e-08]
[1761265351500,4.651479,3861.9,3861.8,0.002]
[1761265351807,8.73530555,3861.9,3861.8,0.002]
[1761265351981,9.18170555,3861.9,3861.8,0.002]
[1761265352181,12.95836217,3861.9,3861.8,0.002]
[1761265352383,13.73647237,3861.9,3861.8,0.002]
[1761265354215,22.48263529,3861.9,3861.8,0.002]
[1761265354401,21.08770659,3861.9,3861.8,0.002]
[1761265354709,12.34154367,3861.9,3861.8,0.002]
[1761265355918,18.73154367,3861.9,3861.8,0.002]
[1761265356324,3.09654722,3861.5,3861.4,0.002]
[1761265356524,3.09654722,3861.5,3859.2,0.002]
[1761265356525,4.14580646,3860.1,3859.2,0.002]
[1761265356741,13.83665222,3860.1,3859.2,0.002]
[1761265357034,8.13798574,3859.7,3859.2,0.002]
[1761265357320,13.38819781,3859.7,3859.2,0.002]
[1761265357519,13.83459781,3859.7,3859.2,0.002]
[1761265358287,12.44271229,3859.7,3859.2,0.002]
[1761265358504,12.44271229,3859.7,3856.8,2.59281191]
[1761265358505,4.6534249,3859.0,3857.4,0.1957]
[1761265358749,1.5552,3858.9,3857.4,0.1957]
[1761265358949,1.5552,3858.6,3857.8,0.1957]
[1761265359247,1.5552,3858.4,3857.8,0.1957]
[1761265359445,1.5552,3858.4,3857.8,0.47449162]
[1761265360558,1.5552,3858.4,3857.5,2.59233162]
[1761265360720,4.14696462,3858.4,3857.5,2.59233162]
[1761265360919,4.14696462,3858.4,3857.4,0.1957]
[1761265360920,4.14696462,3858.4,3857.6,2.59226975]
[1761265361313,4.14696462,3858.4,3857.4,0.3914]
[1761265361314,1.5552,3858.0,3857.7,0.1296]
[1761265361650,3.301,3857.9,3857.7,0.1296]
[1761265361940,4.9137004,3860.6,3857.8,0.1957]
[1761265361941,2.59129008,3859.1,3857.8,0.1957]
[1761265362100,2.59148746,3858.8,3857.8,0.1957]
[1761265362300,1.5552,3858.6,3857.8,2.78784165]
[1761265362505,1.5552,3858.4,3857.8,0.1957]
[1761265362706,1.5552,3858.4,3857.5,2.59228661]
[1761265362707,4.14700836,3858.4,3857.5,2.59233311]
[1761265363008,1.5552,3858.4,3857.6,2.59226415]
[1761265363212,4.14695804,3858.4,3857.7,2.59221767]
[1761265363556,3.302,3858.3,3857.6,0.1957]
[1761265364056,3.302,3858.3,3857.4,0.1957]
[1761265364219,3.302,3858.3,3857.6,2.5922683]
[1761265364425,3.302,3858.3,3857.7,2.59221114]
[1761265364756,3.302,3858.3,3857.9,2.59207917]
[1761265365139,3.302,3858.3,3858.0,0.1957]
[1761265365511,3.302,3858.3,3857.8,2.59210732]
[1761265365963,3.302,3858.3,3857.9,2.59207233]
[1761265366131,3.302,3858.3,3858.0,2.59201464]
[1761265366555,3.302,3858.3,3858.2,2.59188222]
[1761265367184,3.302,3858.3,3858.2,2.78758222]
[1761265367372,2.59119884,3859.3,3858.4,2.59170921]
[1761265367540,1.5552,3859.1,3858.3,0.1957]
[1761265367739,0.4464,3859.7,3858.7,2.5915293]
[1761265367740,1.5552,3858.9,3858.7,2.5915293]
[1761265367937,3.305,3858.8,3858.7,2.59154637]
[1761265368154,4.27973636,3859.7,3858.8,2.59142899]
[1761265368355,7.45114695,3859.6,3858.6,2.78730877]
[1761265368577,4.8602,3859.6,3858.9,2.59136041]
[1761265368782,4.8602,3859.6,3858.7,2.7871795]
[1761265368983,2.5910096,3859.5,3858.7,2.7871795]
[1761265369278,1.5552,3859.3,3858.7,2.78723304]
[1761265369437,1.5552,3859.1,3858.7,2.78723304]
[1761265369637,1.5552,3859.1,3858.7,2.59153304]
[1761265370044,1.5552,3859.1,3858.6,2.87034425]
[1761265370260,1.5552,3859.1,3858.8,2.59142363]
[1761265370773,1.5552,3859.1,3858.8,2.78712363]
[1761265372074,1.5552,3859.1,3858.8,2.72102363]
[1761265372650,1.5552,3859.1,3858.8,0.1296]
[1761265372858,1.5552,3859.1,3858.8,2.72106217]
[1761265373065,1.5552,3859.1,3858.8,0.1296]
[1761265374267,1.5552,3859.1,3858.8,2.72107477]
[1761265374762,1.5552,3859.1,3858.8,0.1296]
[1761265374959,1.5552,3859.1,3858.9,0.1957]
[1761265375185,1.5552,3859.1,3859.0,2.5913449]
[1761265375493,3.305,3859.2,3859.1,2.59127775]
[1761265375671,3.305,3859.2,3859.1,2.78697775]
[1761265377069,3.305,3859.2,3859.0,0.1296]
[1761265377663,3.305,3859.2,3859.0,2.72093873]
[1761265378498,3.305,3859.2,3859.1,2.59127775]
[1761265380489,3.305,3859.2,3859.0,0.1296]
[1761265380688,3.6355,3859.2,3858.7,2.59150033]
[1761265380997,3.305,3859.2,3858.9,0.1296]
[1761265381194,3.305,3859.2,3858.9,2.72100919]
[1761265381397,3.305,3859.2,3858.9,0.3253]
[1761265381604,3.305,3859.2,3858.6,0.002]
[1761265381605,0.69509397,3860.1,3859.0,0.22161344]
[1761265381776,3.302,3860.0,3859.3,2.59114347]
[1761265382122,3.302,3859.9,3859.8,2.72040781]
[1761265382414,0.1296,3860.4,3859.8,2.72040781]
[1761265382415,3.302,3860.1,3859.8,2.72040781]
[1761265382580,3.302,3860.1,3858.6,0.002]
[1761265382581,0.234,3859.9,3858.6,0.002]
[1761265382779,4.14674637,3858.7,3858.6,0.002]
[1761265383102,5.42151146,3858.7,3858.6,0.002]
[1761265384600,2.11151146,3858.7,3858.6,0.002]
[1761265384806,1.39018524,3859.4,3858.6,0.002]
[1761265384807,0.69509397,3859.3,3858.6,0.002]
[1761265385002,2.48199016,3859.6,3858.6,0.002]
[1761265385003,1.5552,3859.1,3858.6,0.002]
[1761265385208,2.59114084,3859.4,3858.6,0.002]
[1761265385209,3.868337,3859.0,3858.6,0.002]
[1761265385499,3.314,3859.0,3858.9,2.59141206]
[1761265385701,0.55734684,3859.0,3858.9,3.1294779]
[1761265385910,4.8692,3859.3,3859.2,2.59121061]
[1761265386089,5.42650485,3859.3,3859.2,2.59121061]
[1761265387061,5.42650485,3859.3,3859.0,0.1957]
[1761265387267,0.55730485,3859.2,3858.6,0.002]
[1761265387463,0.55730485,3859.1,3858.9,2.59135671]
[1761265387697,4.8692,3859.3,3859.0,2.59134484]
[1761265387698,0.55730485,3859.2,3859.0,2.59134484]
[1761265388088,0.55730485,3859.2,3859.1,2.59127775]
[1761265388511,0.55730485,3859.2,3859.0,2.59132647]
[1761265388716,0.55730485,3859.2,3858.6,0.002]
[1761265388904,1.02830485,3859.1,3858.6,0.002]
[1761265389110,3.87130485,3859.0,3858.6,0.002]
[1761265389305,3.785,3859.0,3858.6,0.002]
[1761265390223,0.55788904,3858.9,3858.6,0.002]
[1761265390422,0.55788904,3858.9,3858.6,2.59360455]
[1761265390625,0.55788904,3858.9,3858.6,0.002]
[1761265390792,1.02888904,3858.8,3858.6,0.002]
[1761265390991,0.55788904,3858.7,3858.6,0.002]
[1761265391212,3.314,3859.0,3858.6,0.002]
[1761265391213,0.55788904,3858.9,3858.6,0.002]
[1761265391525,0.55788904,3858.8,3858.6,0.002]
[1761265391708,0.55788904,3858.9,3858.7,2.59154637]
[1761265392024,0.55788904,3858.8,3858.7,2.59154637]
[1761265392505,0.55788904,3858.9,3858.7,2.59154637]
[1761265392711,0.55788904,3858.8,3858.7,2.72114637]
[1761265392906,0.55788904,3858.9,3858.8,2.59147921]
[1761265393418,0.55788904,3858.9,3858.7,2.72112039]
[1761265393723,0.55788904,3858.8,3858.7,2.72112039]
[1761265394222,0.55788904,3858.9,3858.8,2.78717921]
[1761265394419,3.314,3859.0,3858.9,2.72101206]
[1761265394588,3.87235948,3859.0,3858.9,2.59141206]
[1761265395701,3.87235948,3859.0,3858.7,0.1296]
[1761265396031,0.55835948,3858.9,3858.7,0.1296]
[1761265396234,3.314,3859.0,3858.7,0.1296]
[1761265396438,3.314,3859.0,3858.9,2.59141206]
[1761265396613,3.314,3859.0,3858.9,2.72101206]
[1761265396614,3.87263841,3859.0,3858.9,2.72101206]
[1761265397446,3.85944841,3859.0,3858.9,2.72101206]
[1761265397648,3.85944841,3859.0,3858.9,0.1296]
[1761265397814,4.87201325,3859.0,3858.6,0.002]
[1761265398014,3.62105114,3858.9,3858.6,0.002]
[1761265398234,0.55863841,3858.8,3858.6,0.002]
[1761265398446,0.55863841,3858.7,3858.6,0.002]
[1761265399646,3.86863841,3858.7,3858.6,0.002]
[1761265400521,6.46018478,3858.7,3858.6,0.002]
[1761265400726,7.62429769,3858.7,3858.6,0.002]
[1761265402038,9.17949769,3858.7,3858.6,0.002]
[1761265402550,9.17949769,3858.7,3858.3,0.002]
[1761265402551,11.51724856,3858.4,3858.3,0.002]
[1761265402711,19.28246521,3858.4,3858.3,0.002]
[1761265402912,20.26034521,3858.4,3858.3,0.002]
[1761265403143,21.65573738,3858.4,3858.3,0.002]
[1761265403356,20.26034521,3858.4,3858.3,0.002]
[1761265405742,2.59181504,3858.3,3858.2,0.002]
[1761265405962,2.59181504,3858.3,3857.9,0.002]
[1761265405963,4.14721658,3858.0,3857.9,0.002]
[1761265406172,8.94243127,3858.0,3857.9,0.002]
[1761265406372,9.41343127,3858.0,3857.9,0.002]
[1761265407782,9.54303127,3858.0,3857.9,0.002]
[1761265407977,11.13837949,3858.0,3857.9,0.002]
[1761265408181,10.20980321,3858.0,3857.9,0.002]
[1761265409762,17.10668321,3858.0,3857.9,0.002]
[1761265409967,16.97708321,3858.0,3857.9,0.002]
[1761265410604,0.50688,3857.5,3857.1,0.002]
[1761265410892,13.07325487,3857.2,3857.1,0.002]
[1761265411185,14.57847328,3857.2,3857.1,0.002]
[1761265411388,15.27364661,3857.2,3857.1,0.002]
[1761265411587,17.48354302,3857.2,3857.1,0.002]
[1761265412567,17.48354302,3857.2,3855.2,0.002]
[1761265412568,2.59343908,3855.9,3855.2,0.002]
[1761265412766,3.307,3855.8,3855.2,0.1977]
[1761265412990,5.9005113,3855.8,3855.2,0.1977]
[1761265413489,5.9005113,3855.8,3855.2,0.30094175]
[1761265413787,3.307,3855.8,3855.2,0.30094175]
[1761265414786,3.307,3855.8,3855.2,2.89483537]
[1761265414961,3.307,3855.8,3855.2,0.30094175]
[1761265415372,3.307,3855.8,3855.2,2.89481505]
[1761265415895,3.307,3855.8,3855.2,0.30094175]
[1761265416793,3.307,3855.8,3855.2,0.002]
[1761265416794,2.59377378,3855.4,3855.2,0.002]
[1761265417094,0.2263,3855.9,3855.2,0.002]
[1761265417095,3.307,3855.3,3855.2,0.002]
[1761265417300,3.306,3855.3,3855.2,0.002]
[1761265419813,3.306,3855.3,3855.2,2.79159914]
[1761265419992,3.306,3855.3,3855.2,3.4795319]
[1761265422205,0.1296,3855.9,3855.3,2.59383186]
[1761265422388,1.5552,3856.1,3855.8,2.59349551]
[1761265422583,3.307,3856.0,3855.8,2.59349551]
[1761265423186,3.307,3856.0,3855.7,2.72313735]
[1761265423493,3.307,3856.0,3855.9,2.59342825]
[1761265423989,3.307,3856.0,3855.9,2.78912825]
[1761265425218,3.308,3856.3,3855.2,0.56033276]
[1761265425386,2.59311471,3856.4,3855.2,0.002]
[1761265425387,3.308,3856.2,3855.2,0.002]
[1761265425586,3.308,3856.2,3855.6,2.59362822]
[1761265426098,3.308,3856.2,3855.4,2.59376314]
[1761265426443,3.308,3856.2,3855.6,2.59363004]
[1761265426999,5.90122963,3856.2,3855.6,2.59363004]
[1761265427538,5.90122963,3856.2,3855.5,2.59368408]
[1761265427833,3.308,3856.2,3855.6,2.5936153]
[1761265428610,3.308,3856.2,3855.2,0.1977]
[1761265428611,5.90124325,3856.2,3855.5,2.59369019]
[1761265429137,5.90124325,3856.2,3855.6,2.59362269]
[1761265430225,6.34094325,3856.2,3855.6,2.59362269]
[1761265431098,2.11168283,3856.1,3855.2,0.002]
[1761265431347,0.55643797,3856.0,3855.2,0.002]
[1761265431546,5.89946728,3855.9,3855.2,0.002]
[1761265431901,2.59349869,3855.8,3855.2,2.59588816]
[1761265432103,2.59349869,3855.8,3855.2,0.002]
[1761265432407,2.59349869,3855.8,3855.2,2.59588213]
[1761265433135,0.55703036,3855.7,3855.2,2.59588213]
[1761265433339,3.306,3855.6,3855.4,0.1296]
[1761265434096,3.306,3855.6,3855.4,2.72332542]
[1761265436182,3.306,3855.6,3855.4,0.1296]
[1761265436478,0.69517333,3856.1,3855.6,2.59359669]
[1761265436682,3.86375213,3856.0,3855.6,2.59359669]
[1761265436882,3.86375213,3856.0,3855.8,0.1296]
[1761265436883,0.55775213,3855.9,3855.8,0.1296]
[1761265437049,0.55775213,3855.9,3855.8,2.72309551]
[1761265437247,0.55775213,3855.9,3855.8,3.34043781]
[1761265437449,0.55807191,3856.2,3856.1,2.59329374]
[1761265437679,3.86407191,3856.3,3856.2,2.59322649]
[1761265437884,3.86407191,3856.3,3856.2,2.78892649]
[1761265438706,3.86407191,3856.3,3856.1,0.1296]
[1761265438854,0.55807191,3856.2,3856.1,0.1296]
[1761265439054,0.55807191,3856.2,3856.1,2.72289058]
[1761265439354,0.55807191,3856.2,3856.1,0.1296]
[1761265439567,0.55807191,3856.2,3856.1,2.72289374]
[1761265440572,0.55807191,3856.2,3856.1,2.91859374]
[1761265441100,0.55807191,3856.2,3856.1,3.52491867]
[1761265441461,3.306,3856.3,3856.2,2.59322649]
[1761265441663,3.86466998,3856.3,3856.2,2.78892649]
[1761265441970,0.55866998,3856.3,3856.2,2.78892649]
[1761265442174,0.55870456,3856.7,3856.6,2.59295752]
[1761265442373,0.55870456,3856.7,3856.6,2.78865752]
[1761265442576,0.55870456,3856.8,3856.7,2.59289029]
[1761265442789,3.306,3856.9,3856.8,2.59282306]
[1761265443059,0.55857724,3856.9,3856.7,0.3253]
[1761265443276,0.55857724,3857.0,3856.8,2.59281748]
[1761265443771,0.55857724,3857.0,3856.9,2.72235584]
[1761265444490,0.001,3857.1,3857.0,2.59268861]
[1761265444655,0.001,3857.1,3857.0,2.78838861]
[1761265446172,0.001,3857.1,3857.0,2.91798861]
[1761265447873,0.001,3857.1,3857.0,0.1296]
[1761265450796,0.001,3857.1,3857.0,2.72228861]
[1761265451679,0.001,3857.1,3857.0,2.91798861]
[1761265451877,0.001,3857.1,3857.0,3.46906889]
[1761265452702,0.001,3857.1,3857.0,3.27336889]
[1761265453379,0.001,3857.1,3857.0,2.72228861]
[1761265455221,0.001,3857.1,3857.0,0.1296]
[1761265456607,0.001,3857.1,3857.0,2.72228861]
[1761265457101,0.001,3857.1,3857.0,2.91798861]
[1761265457497,0.001,3857.1,3857.0,2.72228861]
[1761265458186,0.001,3857.1,3857.0,2.91798861]
[1761265458392,0.001,3857.1,3857.0,3.44949889]
[1761265460295,0.001,3857.1,3857.0,3.25379889]
[1761265461808,0.001,3857.1,3857.0,6.55779889]
[1761265463438,0.001,3857.1,3857.0,6.55979889]
[1761265465447,0.001,3857.1,3857.0,6.75549889]
[1761265466592,0.001,3857.1,3857.0,6.55979889]
[1761265466795,0.001,3857.1,3857.0,6.02828861]
[1761265469398,0.001,3857.1,3857.0,2.72428861]
[1761265469598,0.001,3857.1,3857.0,6.02828861]
[1761265472037,0.001,3857.1,3857.0,6.60126861]
[1761265472258,0.001,3857.1,3857.0,4.98206861]
[1761265472419,0.001,3857.1,3857.0,9.49215212]
[1761265474056,0.001,3857.1,3857.0,6.18815212]
[1761265474357,0.001,3857.1,3857.0,9.49215212]
[1761265474708,0.001,3857.1,3857.0,5.99245212]
[1761265475016,0.001,3857.1,3857.0,9.29645212]
[1761265475245,0.001,3857.1,3857.0,9.49215212]
[1761265476426,0.001,3857.1,3857.0,8.84785212]
[1761265477454,0.001,3857.1,3857.0,8.84685212]
[1761265478066,0.001,3857.1,3857.0,5.54385212]